bitfinex-derivatives/quotes_BTCF0:USTF0_20240923
["timestamp","ask_amount","ask_price","bid_price","bid_amount"]
[1727050480099,0.3608,63092.0,63069.0,0.3608]
[1727050480398,0.3608,63086.0,63084.0,0.079254]
[1727050480903,0.3608,63086.0,63076.0,0.079265]
[1727050480904,0.41886346,63085.0,63076.0,0.079265]
[1727050481104,0.3608,63078.0,63076.0,0.079265]
[1727050481293,0.3608,63078.0,63077.0,1.5]
[1727050481595,0.0022,63081.0,63077.0,1.5]
[1727050481795,0.36292001,63086.0,63085.0,0.079254]
[1727050482000,0.86785548,63086.0,63085.0,0.079254]
[1727050482297,0.86785548,63086.0,63077.0,1.5]
[1727050482298,1.28671894,63086.0,63077.0,1.579263]
[1727050482502,0.41886346,63081.0,63077.0,1.5]
[1727050482798,0.41886346,63085.0,63077.0,1.5]
[1727050483102,0.86997549,63086.0,63084.0,0.079254]
[1727050483103,0.36292001,63086.0,63084.0,0.079254]
[1727050483303,0.3608,63086.0,63085.0,0.3]
[1727050483504,0.3608,63086.0,63085.0,0.77556]
[1727050483702,0.3608,63086.0,63085.0,0.47556]
[1727050483908,0.3608,63086.0,63085.0,1.97556]
[1727050484096,0.3608,63098.0,63085.0,1.97556]
[1727050484419,0.3608,63098.0,63097.0,0.079239]
[1727050484600,0.3608,63110.0,63092.0,0.3608]
[1727050484796,0.41886346,63109.0,63107.0,0.079225]
[1727050485191,0.41886346,63109.0,63108.0,1.5]
[1727050485694,0.3608,63115.0,63108.0,1.5]
[1727050485896,0.41886346,63110.0,63109.0,0.079224]
[1727050486098,0.36292001,63115.0,63114.0,0.079217]
[1727050486406,0.3608,63115.0,63114.0,0.079217]
[1727050486604,1.28671894,63115.0,63109.0,0.0988]
[1727050486803,0.49808646,63110.0,63108.0,1.5]
[1727050487104,0.41886346,63109.0,63108.0,1.5]
[1727050487496,0.92591894,63109.0,63108.0,1.5]
[1727050487702,1.28671894,63109.0,63108.0,1.5]
[1727050488007,1.28671894,63109.0,63102.0,0.079232]
[1727050488298,0.41886346,63106.0,63096.0,0.3608]
[1727050488704,0.3608,63101.0,63094.0,0.00237738]
[1727050489003,0.3608,63101.0,63100.0,0.079235]
[1727050489908,0.3558,63101.0,63100.0,0.079235]
[1727050490399,0.41886346,63095.0,63087.0,0.079251]
[1727050490601,0.3608,63088.0,63087.0,0.079251]
[1727050491205,0.00212001,63094.0,63093.0,0.079244]
[1727050491406,0.3608,63113.0,63093.0,0.83628]
[1727050491706,0.41886346,63107.0,63100.0,0.3608]
[1727050491925,0.41886346,63107.0,63101.0,1.5957]
[1727050492101,0.86933548,63113.0,63101.0,1.5957]
[1727050492102,0.36228,63113.0,63101.0,1.5957]
[1727050492305,1.28671894,63113.0,63101.0,1.5957]
[1727050493006,0.7216,63102.0,63085.0,0.079253]
[1727050493196,0.41886346,63089.0,63075.0,0.0957]
[1727050493393,0.41886346,63089.0,63086.0,1.5]
[1727050493607,0.92591894,63089.0,63086.0,1.5]
[1727050493801,0.41886346,63089.0,63086.0,1.5]
[1727050494214,0.41886346,63089.0,63086.0,1.579251]
[1727050494411,0.41886346,63089.0,63087.0,0.079251]
[1727050494803,0.3608,63088.0,63087.0,0.079251]
[1727050495104,0.41886346,63089.0,63086.0,1.5]
[1727050495909,0.41886346,63089.0,63087.0,0.079251]
[1727050496300,0.3608,63094.0,63086.0,1.5]
[1727050496500,0.77966346,63094.0,63086.0,1.5]
[1727050496701,0.77966346,63094.0,63092.0,0.079244]
[1727050497305,0.3608,63094.0,63092.0,0.079244]
[1727050497616,0.47552,63093.0,63064.0,0.3608]
[1727050497812,0.36867944,63094.0,63048.0,0.0953]
[1727050497813,0.6608,63080.0,63068.0,0.079275]
[1727050498019,0.079268,63074.0,63068.0,0.079275]
[1727050499801,0.079268,63074.0,63066.0,0.3608]
[1727050499802,0.3608,63085.0,63073.0,0.3608]
[1727050500219,0.079249,63089.0,63073.0,0.3608]
[1727050500510,0.079249,63089.0,63084.0,0.079254]
[1727050500511,0.07802802,63089.0,63084.0,0.079254]
[1727050500706,0.3608,63091.0,63088.0,0.079249]
[1727050500913,0.3608,63091.0,63081.0,1.0308]
[1727050501510,0.3608,63091.0,63085.0,0.3608]
[1727050501813,0.079234,63101.0,63094.0,0.079241]
[1727050502016,0.079234,63101.0,63085.0,0.3608]
[1727050502017,0.079234,63101.0,63096.0,0.07924]
[1727050502223,0.079227,63107.0,63092.0,0.079244]
[1727050502510,0.3608,63102.0,63100.0,0.079234]
[1727050502813,0.3,63122.0,63101.0,1.0308]
[1727050503018,0.3,63108.0,63101.0,1.0308]
[1727050503214,0.3,63108.0,63103.0,0.079231]
[1727050503416,0.07695503,63114.0,63106.0,0.079227]
[1727050503712,0.07695503,63114.0,63101.0,0.9911645]
[1727050504016,0.07695503,63116.0,63107.0,0.3608]
[1727050504216,0.3608,63118.0,63107.0,0.3608]
[1727050504415,0.3608,63118.0,63116.0,0.079214]
[1727050504920,0.09234604,63128.0,63107.0,0.3608]
[1727050504921,0.07695503,63123.0,63107.0,0.3608]
[1727050505117,0.43775503,63125.0,63120.0,0.079209]
[1727050505313,0.43775503,63125.0,63122.0,0.079206]
[1727050505314,0.3608,63125.0,63122.0,0.079206]
[1727050505617,0.3608,63125.0,63123.0,0.079206]
[1727050506312,0.36317722,63133.0,63129.0,0.079198]
[1727050507212,0.36317722,63133.0,63131.0,0.079196]
[1727050507411,0.00237722,63133.0,63131.0,0.079196]
[1727050508420,0.00237722,63133.0,63132.0,0.67]
[1727050509009,0.3608,63140.0,63132.0,0.67]
[1727050509211,0.07695503,63145.0,63135.0,0.3608]
[1727050509411,0.3608,63155.0,63141.0,0.3608]
[1727050509412,0.07695503,63149.0,63141.0,0.3608]
[1727050509617,0.07695503,63149.0,63126.0,0.3]
[1727050509618,0.079219,63113.0,63097.0,0.3608]
[1727050509817,0.6608,63108.0,63097.0,0.3608]
[1727050510023,0.079229,63105.0,63097.0,0.3608]
[1727050510218,0.4754,63107.0,63084.0,0.079254]
[1727050510425,0.4754,63107.0,63073.0,0.3608]
[1727050510426,0.3,63089.0,63085.0,0.8537]
[1727050510620,0.3,63089.0,63085.0,0.8529]
[1727050510826,0.7216,63091.0,63085.0,0.8529]
[1727050511130,0.3608,63091.0,63085.0,0.8529]
[1727050511318,0.3608,63091.0,63089.0,0.079248]
[1727050511519,0.079252,63086.0,63085.0,0.8529]
[1727050511721,0.079252,63086.0,63085.0,0.1649]
[1727050513217,0.3608,63091.0,63085.0,0.1649]
[1727050513623,0.740052,63086.0,63085.0,0.0755]
[1727050514125,1.815612,63086.0,63085.0,0.0755]
[1727050515323,1.815612,63086.0,63072.0,0.67]
[1727050515526,1.0216,63073.0,63035.0,0.04580765]
[1727050515836,0.3,63044.0,63033.0,0.3608]
[1727050516433,0.3608,63048.0,63033.0,0.3608]
[1727050516839,0.3608,63048.0,63039.0,0.079311]
[1727050517345,0.3608,63048.0,63037.0,0.079313]
[1727050517526,0.3608,63038.0,63037.0,0.079313]
[1727050517727,0.3608,63048.0,63037.0,0.079313]
[1727050518032,0.3608,63048.0,63037.0,0.056013]
[1727050518033,0.3608,63040.0,63037.0,0.056013]
[1727050518235,0.3608,63040.0,63014.0,0.3608]
[1727050518236,0.3,63038.0,63014.0,0.3608]
[1727050518532,0.3,63038.0,63008.0,0.3608]
[1727050518533,0.3608,63016.0,63008.0,0.3608]
[1727050519436,0.3608,63016.0,63008.0,0.82885]
[1727050519739,0.3608,63016.0,63008.0,0.7495]
[1727050519927,0.36252001,63024.0,63017.0,0.079338]
[1727050520123,0.6608,63024.0,63011.0,0.079346]
[1727050520328,0.6608,63024.0,63008.0,0.7495]
[1727050520329,0.3,63012.0,63008.0,0.7503]
[1727050520634,0.3608,63014.0,63008.0,0.7495]
[1727050522052,0.079347,63011.0,63008.0,0.3887]
[1727050522232,0.079349,63010.0,63008.0,0.3887]
[1727050522433,0.679349,63010.0,63008.0,0.31233814]
[1727050522641,0.47612,63009.0,63008.0,0.31233814]
[1727050523137,1.07612,63009.0,63008.0,0.31233814]
[1727050523547,0.079376,62988.0,62981.0,0.3608]
[1727050523737,0.079376,62988.0,62972.0,0.3608]
[1727050523738,0.3,62983.0,62974.0,0.079392]
[1727050523932,0.3,62983.0,62972.0,0.3608]
[1727050524241,0.3,62976.0,62973.0,0.079394]
[1727050525246,0.3,62976.0,62972.0,0.3608]
[1727050525546,0.3608,62980.0,62966.0,0.3]
[1727050525729,0.3608,62980.0,62973.0,0.079394]
[1727050526341,0.3608,62974.0,62962.0,0.079408]
[1727050526640,0.3608,62974.0,62958.0,0.3608]
[1727050526852,0.3608,62974.0,62954.0,0.00238267]
[1727050527031,0.008,62995.0,62925.0,0.079454]
[1727050527032,0.3608,62938.0,62925.0,0.079454]
[1727050527354,0.7216,62926.0,62923.0,0.079458]
[1727050527644,0.7216,62926.0,62925.0,1.17]
[1727050528148,1.19836,62926.0,62925.0,1.17]
[1727050528332,0.7216,62926.0,62925.0,1.17]
[1727050528827,1.79836,62926.0,62925.0,1.17]
[1727050529028,1.79836,62926.0,62898.0,0.3]
[1727050529029,0.079458,62924.0,62898.0,0.3]
[1727050529228,0.3608,62901.0,62899.0,0.079488]
[1727050529461,0.3608,62901.0,62900.0,1.17]
[1727050529630,0.9608,62901.0,62900.0,1.17]
[1727050529831,1.43776,62901.0,62900.0,1.17]
[1727050530053,0.3608,62901.0,62900.0,1.17]
[1727050531035,1.43776,62901.0,62892.0,0.079496]
[1727050531235,0.3608,62893.0,62892.0,0.079496]
[1727050531435,0.3608,62901.0,62900.0,0.079487]
[1727050531738,0.3608,62901.0,62900.0,1.549487]
[1727050532040,0.3608,62901.0,62900.0,1.17]
[1727050532734,0.3608,62910.0,62900.0,2.24696]
[1727050532935,0.3608,62923.0,62909.0,0.3]
[1727050533128,0.3608,62932.0,62901.0,0.47692]
[1727050533129,0.3608,62932.0,62922.0,0.3]
[1727050533441,0.3608,62938.0,62921.0,0.3608]
[1727050533643,0.3608,62938.0,62923.0,0.3]
[1727050533836,0.3608,62938.0,62937.0,0.07944]
[1727050534042,0.3608,62948.0,62935.0,0.3]
[1727050534431,0.3608,62948.0,62936.0,1.17]
[1727050534633,0.3608,62954.0,62942.0,0.3]
[1727050535033,0.3608,62961.0,62942.0,0.3]
[1727050535233,0.3608,62961.0,62945.0,0.07943]
[1727050535234,0.3608,62953.0,62945.0,0.07943]
[1727050535442,0.3608,62953.0,62947.0,0.079427]
[1727050535646,0.3608,62953.0,62950.0,0.079424]
[1727050535840,0.3608,62953.0,62928.0,0.3]
[1727050535841,0.440223,62951.0,62928.0,0.3]
[1727050536032,0.3608,62942.0,62928.0,0.3]
[1727050536237,0.3608,62942.0,62924.0,0.3608]
[1727050536238,0.3608,62943.0,62938.0,1.17]
[1727050536436,0.3608,62942.0,62938.0,1.17]
[1727050537355,0.3608,62942.0,62918.0,0.0008]
[1727050537356,0.079461,62921.0,62918.0,0.0008]
[1727050537641,0.079461,62921.0,62893.0,0.3608]
[1727050537642,0.740264,62919.0,62906.0,0.079478]
[1727050537945,0.3608,62911.0,62898.0,0.079488]
[1727050538146,0.3608,62905.0,62894.0,1.17]
[1727050538446,0.3608,62896.0,62886.0,0.079504]
[1727050538641,0.3608,62896.0,62887.0,0.079503]
[1727050538839,0.3608,62891.0,62887.0,0.079503]
[1727050539152,0.3608,62897.0,62876.0,0.0975]
[1727050539341,0.079485,62902.0,62876.0,0.0975]
[1727050539342,0.3608,62883.0,62876.0,0.079516]
[1727050539541,0.008,62911.0,62882.0,0.6608]
[1727050539735,0.3608,62913.0,62900.0,0.3]
[1727050539939,0.3608,62907.0,62899.0,0.3608]
[1727050540245,0.3608,62907.0,62886.0,0.3608]
[1727050540246,0.079489,62899.0,62886.0,0.3608]
[1727050540451,0.3608,62892.0,62886.0,0.3608]
[1727050540637,0.3608,62893.0,62886.0,0.3608]
[1727050540837,0.3608,62893.0,62880.0,0.1875]
[1727050540838,0.3608,62887.0,62880.0,0.1875]
[1727050541035,0.3608,62887.0,62876.0,0.3]
[1727050541036,0.3608,62881.0,62872.0,0.3608]
[1727050541242,0.3608,62877.0,62867.0,0.3608]
[1727050541445,0.3608,62877.0,62875.0,0.079517]
[1727050541839,0.3608,62877.0,62868.0,1.17]
[1727050542044,0.3608,62877.0,62869.0,0.3]
[1727050542462,0.3608,62877.0,62871.0,0.079523]
[1727050542751,0.3608,62878.0,62876.0,0.079517]
[1727050542935,0.3608,62884.0,62877.0,1.47]
[1727050543139,0.3608,62899.0,62883.0,0.3608]
[1727050543343,0.3608,62899.0,62877.0,1.17]
[1727050543344,0.3608,62885.0,62872.0,0.3608]
[1727050543641,0.3608,62885.0,62869.0,0.3608]
[1727050543838,0.3608,62885.0,62878.0,0.079514]
[1727050544345,0.3608,62879.0,62867.0,0.3]
[1727050544541,0.3608,62879.0,62874.0,0.3]
[1727050544745,0.3608,62879.0,62876.0,0.079516]
[1727050544943,0.3608,62885.0,62878.0,0.079515]
[1727050545245,0.3608,62885.0,62867.0,0.0908]
[1727050545246,0.440306,62885.0,62875.0,0.079518]
[1727050545453,0.3608,62885.0,62867.0,0.0908]
[1727050545851,0.3608,62885.0,62873.0,0.07952]
[1727050545852,0.3608,62876.0,62873.0,0.07952]
[1727050546048,0.3608,62875.0,62873.0,0.07952]
[1727050546351,0.7216,62877.0,62867.0,0.0908]
[1727050546667,0.3608,62871.0,62850.0,0.3608]
[1727050547155,0.3608,62863.0,62850.0,0.3608]
[1727050547356,0.3608,62863.0,62860.0,0.079537]
[1727050547551,0.3608,62861.0,62850.0,0.3608]
[1727050547755,0.3608,62861.0,62845.0,0.30238682]
[1727050547756,0.3608,62851.0,62822.0,0.3608]
[1727050547966,0.3608,62838.0,62831.0,0.3]
[1727050548147,0.3608,62832.0,62831.0,0.3]
[1727050548457,0.3608,62846.0,62831.0,1.07748]
[1727050548662,0.3608,62846.0,62823.0,0.079584]
[1727050548663,0.3608,62859.0,62832.0,0.09202903]
[1727050548959,0.3608,62852.0,62832.0,0.0912]
[1727050549161,0.3608,62845.0,62832.0,0.0912]
[1727050549462,0.440369,62836.0,62820.0,0.079587]
[1727050549752,0.3608,62821.0,62808.0,0.0912]
[1727050549958,0.3608,62821.0,62820.0,0.379588]
[1727050550251,0.3608,62831.0,62830.0,0.079575]
[1727050550457,0.3608,62831.0,62830.0,0.379575]
[1727050550838,1.79908,62831.0,62815.0,0.3]
[1727050551053,0.3608,62831.0,62829.0,0.079576]
[1727050551250,0.3608,62831.0,62818.0,0.3]
[1727050551455,0.3608,62819.0,62818.0,0.3]
[1727050551654,0.3608,62819.0,62818.0,0.379591]
[1727050552045,0.3608,62819.0,62816.0,1.17]
[1727050552046,1.43836,62819.0,62816.0,1.17]
[1727050552260,0.47756,62818.0,62810.0,0.0796]
[1727050552551,0.3608,62811.0,62810.0,0.0796]
[1727050553553,0.3608,62811.0,62803.0,1.17]
[1727050553554,1.43844,62811.0,62803.0,0.079609]
[1727050553745,0.3608,62804.0,62803.0,0.079609]
[1727050553942,0.3608,62804.0,62788.0,0.3608]
[1727050554143,0.3608,62794.0,62789.0,1.17]
[1727050554350,0.3608,62804.0,62803.0,0.07961]
[1727050555152,1.43848,62804.0,62790.0,0.079626]
[1727050555353,0.3608,62797.0,62796.0,0.3]
[1727050555740,0.3608,62797.0,62796.0,0.379618]
[1727050555942,0.3608,62797.0,62789.0,1.17]
[1727050555943,1.43852,62797.0,62789.0,1.17]
[1727050556251,0.3608,62790.0,62770.0,0.3608]
[1727050556445,0.3608,62780.0,62779.0,0.07964]
[1727050556850,0.3608,62780.0,62762.0,0.3608]
[1727050556851,0.079642,62778.0,62762.0,0.3608]
[1727050557147,0.079642,62778.0,62743.0,0.079686]
[1727050557148,0.3608,62763.0,62756.0,0.3]
[1727050557450,0.3608,62772.0,62762.0,0.3]
[1727050557648,0.3608,62772.0,62769.0,0.3]
[1727050558149,0.3608,62772.0,62770.0,0.079651]
[1727050558461,0.3608,62771.0,62759.0,0.3]
[1727050558760,0.3608,62776.0,62775.0,0.079645]
[1727050558958,0.7216,62776.0,62756.0,0.3608]
[1727050559251,0.3608,62763.0,62762.0,0.079662]
[1727050560050,1.1996,62763.0,62756.0,0.079669]
[1727050560244,0.3608,62757.0,62741.0,0.3]
[1727050560561,0.3608,62750.0,62741.0,0.3]
[1727050560856,0.3608,62750.0,62749.0,1.25206819]
[1727050561154,0.7216,62753.0,62749.0,1.17239019]
[1727050561358,0.7216,62753.0,62749.0,1.17]
[1727050561657,0.7216,62753.0,62734.0,0.3]
[1727050561658,0.47808,62752.0,62734.0,0.3]
[1727050561854,0.3608,62742.0,62741.0,0.079688]
[1727050562159,0.3608,62753.0,62741.0,0.379688]
[1727050562344,0.3608,62765.0,62764.0,0.079659]
[1727050562547,0.3608,62783.0,62782.0,0.079636]
[1727050562759,0.3608,62783.0,62782.0,0.379636]
[1727050563056,0.3608,62803.0,62782.0,2.18784]
[1727050563243,0.3608,62803.0,62802.0,0.07961]
[1727050563444,0.3608,62803.0,62780.0,0.3608]
[1727050563445,0.9608,62803.0,62795.0,0.079619]
[1727050563645,0.9608,62803.0,62786.0,0.3608]
[1727050563646,0.3608,62797.0,62786.0,0.3608]
[1727050563845,0.3608,62797.0,62793.0,0.079622]
[1727050564050,0.3608,62803.0,62796.0,0.3]
[1727050564365,0.36318974,62813.0,62811.0,0.079599]
[1727050564549,0.00238974,62813.0,62811.0,0.079599]
[1727050564749,0.4776,62812.0,62811.0,0.079599]
[1727050564947,0.00458974,62813.0,62800.0,0.3608]
[1727050565158,0.3,62822.0,62800.0,0.3608]
[1727050565159,0.3608,62815.0,62814.0,0.079596]
[1727050565548,1.4384,62815.0,62806.0,0.079605]
[1727050565748,1.4384,62815.0,62800.0,0.3608]
[1727050565749,0.3608,62815.0,62800.0,0.3608]
[1727050565957,0.3608,62815.0,62801.0,0.3]
[1727050566162,0.3608,62815.0,62813.0,0.079596]
[1727050566347,0.3608,62815.0,62804.0,0.079608]
[1727050566548,0.3608,62815.0,62793.0,0.0983]
[1727050566549,0.3608,62805.0,62789.0,0.3608]
[1727050566860,0.3608,62795.0,62784.0,0.3608]
[1727050567055,0.3608,62795.0,62794.0,0.07962]
[1727050567256,0.3608,62805.0,62796.0,0.079618]
[1727050567456,0.3608,62805.0,62791.0,0.3608]
[1727050567757,0.3608,62805.0,62803.0,0.079609]
[1727050567961,0.3608,62811.0,62810.0,0.079601]
[1727050568150,0.3608,62821.0,62810.0,0.3]
[1727050568473,0.3608,62834.0,62808.0,0.3608]
[1727050568474,0.3608,62828.0,62819.0,0.3]
[1727050568759,0.3608,62834.0,62827.0,0.6608]
[1727050568947,0.440356,62846.0,62827.0,0.6608]
[1727050568948,0.3608,62846.0,62827.0,0.6608]
[1727050569148,0.3608,62846.0,62833.0,0.3608]
[1727050569549,0.3608,62846.0,62843.0,0.079558]
[1727050569957,0.3608,62846.0,62844.0,0.079557]
[1727050570755,0.3608,62846.0,62845.0,0.45]
[1727050571458,0.3608,62858.0,62845.0,0.8108]
[1727050571765,0.3608,62858.0,62856.0,0.079542]
[1727050573057,0.3608,62858.0,62851.0,0.3608]
[1727050573058,0.3608,62866.0,62860.0,0.079537]
[1727050573262,0.3608,62866.0,62851.0,0.3608]
[1727050573263,0.3608,62874.0,62857.0,0.3608]
[1727050573453,0.363,62880.0,62878.0,0.079514]
[1727050573757,0.3608,62889.0,62875.0,0.3]
[1727050574249,0.3608,62889.0,62879.0,0.079513]
[1727050574448,0.3608,62889.0,62873.0,0.3608]
[1727050574449,0.3608,62880.0,62873.0,0.3608]
[1727050574750,0.3608,62880.0,62873.0,0.44032]
[1727050574956,0.3608,62874.0,62852.0,0.3608]
[1727050575155,0.3608,62863.0,62852.0,0.3608]
[1727050575465,0.07953,62866.0,62852.0,0.3608]
[1727050575763,0.3608,62868.0,62860.0,0.079537]
[1727050576350,0.3608,62868.0,62861.0,0.45]
[1727050576576,0.3608,62874.0,62867.0,0.3608]
[1727050576857,0.3608,62874.0,62872.0,0.079521]
[1727050578160,0.556682,62873.0,62841.0,0.3608]
[1727050578364,0.556682,62873.0,62818.0,0.07959]
[1727050578365,0.3,62842.0,62821.0,0.3608]
[1727050578560,0.3608,62837.0,62822.0,0.3]
[1727050578761,0.00232,62843.0,62834.0,0.079569]
[1727050579062,0.00232,62843.0,62814.0,0.0909]
[1727050579063,0.079581,62826.0,62811.0,0.079598]
[1727050579255,0.3608,62823.0,62811.0,0.079598]
[1727050579451,0.3608,62822.0,62811.0,0.079598]
[1727050579751,0.00238914,62839.0,62814.0,0.079595]
[1727050579752,0.3608,62826.0,62814.0,0.079595]
[1727050579961,0.3608,62819.0,62814.0,0.079595]
[1727050580169,0.079605,62807.0,62789.0,0.3608]
[1727050580355,0.3608,62799.0,62794.0,0.07962]
[1727050580760,0.3608,62799.0,62789.0,0.3608]
[1727050580950,0.3608,62790.0,62771.0,0.00238962]
[1727050581155,0.3608,62782.0,62777.0,0.079642]
[1727050581359,0.3608,62790.0,62775.0,0.3608]
[1727050581563,0.363,62799.0,62782.0,0.3]
[1727050581863,0.3,62783.0,62768.0,0.3608]
[1727050582061,0.3,62783.0,62761.0,0.3608]
[1727050582062,0.6608,62776.0,62753.0,0.4582]
[1727050582258,0.6608,62776.0,62761.0,0.079663]
[1727050582565,0.6608,62776.0,62753.0,0.4582]
[1727050582566,0.3608,62776.0,62754.0,0.45]
[1727050582953,0.3608,62776.0,62763.0,0.07966]
[1727050583156,0.3608,62776.0,62759.0,0.3608]
[1727050583353,0.3608,62776.0,62757.0,0.079668]
[1727050583354,0.3608,62766.0,62757.0,0.079668]
[1727050583756,0.3608,62766.0,62757.0,0.529668]
[1727050583962,0.3608,62769.0,62757.0,0.529668]
[1727050584161,0.6608,62761.0,62747.0,0.07968]
[1727050584361,0.3,62754.0,62740.0,0.3608]
[1727050584565,0.3608,62750.0,62740.0,0.3608]
[1727050584966,0.3,62745.0,62740.0,0.3608]
[1727050585159,0.47812,62749.0,62706.0,0.06536669]
[1727050585160,0.3608,62742.0,62722.0,0.440512]
[1727050585465,0.6608,62723.0,62704.0,0.079734]
[1727050585763,0.6608,62723.0,62692.0,0.3608]
[1727050585764,0.3608,62713.0,62692.0,0.3608]
[1727050585963,0.3,62693.0,62677.0,0.440568]
[1727050586267,0.3,62693.0,62654.0,0.00016142]
[1727050586268,0.3608,62725.0,62699.0,0.079741]
[1727050586467,0.008,62716.0,62695.0,0.3608]
[1727050586652,0.008,62716.0,62702.0,0.079737]
[1727050587152,0.008,62716.0,62701.0,0.3608]
[1727050587360,0.308,62716.0,62701.0,0.3608]
[1727050587659,0.008,62716.0,62706.0,0.079732]
[1727050588060,0.308,62716.0,62706.0,0.079732]
[1727050588259,0.3608,62713.0,62697.0,0.3608]
[1727050588464,0.3608,62718.0,62697.0,0.3608]
[1727050588663,0.3608,62718.0,62709.0,0.3608]
[1727050588962,0.00239309,62736.0,62721.0,0.079712]
[1727050589156,0.3608,62737.0,62715.0,0.3608]
[1727050589357,0.3608,62737.0,62728.0,0.079704]
[1727050589857,0.3608,62737.0,62730.0,0.079701]
[1727050590061,0.32,62733.0,62721.0,0.440513]
[1727050590259,0.00239193,62760.0,62713.0,0.3608]
[1727050590260,0.3608,62729.0,62713.0,0.3608]
[1727050590461,0.3608,62738.0,62720.0,0.079714]
[1727050590462,0.3608,62728.0,62720.0,0.079714]
[1727050590868,0.3608,62727.0,62720.0,0.529714]
[1727050591077,0.3608,62727.0,62695.0,0.32]
[1727050591078,0.3608,62721.0,62694.0,0.3608]
[1727050591257,0.3608,62708.0,62694.0,0.3608]
[1727050591865,0.3608,62701.0,62694.0,0.3608]
[1727050592066,0.3608,62714.0,62694.0,0.3608]
[1727050592259,0.3608,62714.0,62700.0,0.3608]
[1727050592459,0.3608,62714.0,62707.0,0.07973]
[1727050592857,0.3608,62708.0,62695.0,0.45]
[1727050593060,0.440523,62714.0,62701.0,0.079739]
[1727050593369,0.3608,62708.0,62701.0,0.079739]
[1727050593969,0.3608,62737.0,62703.0,0.3608]
[1727050594175,0.008,62745.0,62727.0,0.3608]
[1727050594362,0.008,62757.0,62727.0,0.3608]
[1727050594363,0.3608,62739.0,62731.0,0.0797]
[1727050594565,0.6808,62747.0,62727.0,0.3608]
[1727050594767,0.07971,62724.0,62713.0,0.079723]
[1727050595073,0.07971,62724.0,62704.0,0.104]
[1727050595074,0.3608,62718.0,62704.0,0.104]
[1727050595277,0.3608,62718.0,62695.0,0.3608]
[1727050595278,0.3608,62711.0,62695.0,0.3608]
[1727050595663,0.079732,62707.0,62695.0,0.3608]
[1727050595878,0.3608,62703.0,62695.0,0.3608]
[1727050596166,0.3608,62706.0,62703.0,0.079736]
[1727050596370,0.3608,62712.0,62710.0,0.079726]
[1727050597081,0.079692,62738.0,62711.0,0.8392]
[1727050597262,0.079692,62738.0,62722.0,0.3608]
[1727050597458,0.36319307,62740.0,62732.0,0.079699]
[1727050597761,0.36319307,62740.0,62732.0,0.440499]
[1727050598369,0.00239307,62740.0,62732.0,0.3608]
[1727050598567,0.00239307,62740.0,62738.0,0.079692]
[1727050598875,0.00239307,62740.0,62730.0,0.3608]
[1727050598876,0.079693,62738.0,62730.0,0.3608]
[1727050599273,0.079694,62737.0,62730.0,0.3608]
[1727050599468,0.00239307,62740.0,62730.0,0.3608]
[1727050599668,0.37006195,62745.0,62730.0,0.3608]
[1727050599870,0.00926195,62745.0,62739.0,0.44049]
[1727050600173,0.00926195,62745.0,62739.0,0.3608]
[1727050600374,0.00926195,62745.0,62744.0,0.079684]
[1727050600568,0.079661,62763.0,62743.0,0.7216]
[1727050600876,0.3608,62766.0,62753.0,0.09]
[1727050601073,0.07967,62756.0,62753.0,0.09]
[1727050601269,0.07966,62764.0,62756.0,0.079669]
[1727050601670,0.079669,62757.0,62728.0,0.3608]
[1727050601871,0.079708,62726.0,62713.0,0.3608]
[1727050602073,0.3608,62740.0,62713.0,0.3608]
[1727050602372,0.32,62724.0,62713.0,0.3608]
[1727050602568,0.079719,62717.0,62713.0,0.3608]
[1727050603666,0.079719,62717.0,62713.0,0.1782]
[1727050603667,0.32,62714.0,62713.0,0.1782]
[1727050603886,0.32,62714.0,62689.0,0.079754]
[1727050603887,0.760523,62714.0,62689.0,0.079754]
[1727050604178,0.48060001,62716.0,62686.0,0.3608]
[1727050604179,0.079751,62692.0,62686.0,0.3608]
[1727050604366,0.079751,62692.0,62687.0,0.09]
[1727050604768,0.683,62694.0,62674.0,0.3608]
[1727050604978,0.079768,62679.0,62665.0,0.079785]
[1727050605170,0.079768,62679.0,62670.0,0.3608]
[1727050605364,0.3608,62671.0,62670.0,0.3608]
[1727050605770,0.3608,62671.0,62665.0,0.079785]
[1727050605973,0.3608,62671.0,62666.0,0.3608]
[1727050606168,0.47872,62670.0,62657.0,0.00239397]
[1727050606373,0.47872,62670.0,62631.0,0.3608]
[1727050606374,0.7216,62663.0,62631.0,0.3608]
[1727050606593,0.3608,62637.0,62619.0,0.3608]
[1727050606888,0.3608,62631.0,62619.0,0.8116]
[1727050607090,0.3608,62637.0,62625.0,0.3608]
[1727050607384,0.3608,62637.0,62628.0,0.079832]
[1727050607570,0.3608,62631.0,62619.0,0.3608]
[1727050607771,0.440637,62624.0,62619.0,0.3608]
[1727050607970,0.32,62621.0,62598.0,0.1217]
[1727050608167,0.3608,62611.0,62597.0,0.36087]
[1727050608379,0.3608,62605.0,62600.0,0.079868]
[1727050608581,0.3608,62612.0,62606.0,0.3608]
[1727050608776,0.3608,62612.0,62597.0,7e-05]
[1727050608981,0.3608,62621.0,62611.0,0.3608]
[1727050609198,0.3608,62621.0,62597.0,7e-05]
[1727050609199,0.3608,62621.0,62620.0,0.3608]
[1727050609375,0.6808,62633.0,62614.0,0.3608]